bitfinex-derivatives/quotes_BTCF0:USTF0_20210404
["timestamp","ask_amount","ask_price","bid_price","bid_amount"]
[1617567926559,0.55458236,57938.0,57937.0,6.6167678]
[1617567927356,0.30324913,57938.0,57937.0,6.17435707]
[1617567927562,0.29694913,57938.0,57937.0,6.17435707]
[1617567927779,0.26064913,57938.0,57937.0,6.17435707]
[1617567927956,0.44440851,57948.0,57937.0,6.61549231]
[1617567928155,0.42050851,57948.0,57937.0,3.55899231]
[1617567928356,0.5049959,57954.0,57944.0,0.81714796]
[1617567928555,0.5049959,57954.0,57946.0,0.2]
[1617567928757,0.504986,57955.0,57948.0,0.2]
[1617567928957,0.504986,57955.0,57953.0,1.0]
[1617567929155,0.504986,57955.0,57954.0,1.2]
[1617567929356,0.50498508,57957.0,57954.0,1.46]
[1617567929556,0.50498508,57957.0,57956.0,0.10725655]
[1617567929957,0.50498508,57957.0,57956.0,1.57725655]
[1617567930357,0.50497576,57958.0,57956.0,1.57725655]
[1617567930758,0.50497576,57958.0,57956.0,0.57725655]
[1617567931058,0.50497576,57958.0,57957.0,1.2]
[1617567931459,0.50496651,57959.0,57957.0,2.97]
[1617567931859,0.50496651,57959.0,57957.0,1.97]
[1617567932059,0.50496879,57958.0,57957.0,1.97]
[1617567932460,0.50496879,57958.0,57957.0,1.47]
[1617567932859,0.50496873,57960.0,57957.0,0.47]
[1617567933062,0.50496873,57960.0,57957.0,1.47]
[1617567933360,0.5048105,57962.0,57960.0,0.2]
[1617567933560,0.5048105,57962.0,57960.0,0.2511]
[1617567933760,0.5048105,57962.0,57961.0,1.47]
[1617567934362,0.50479006,57963.0,57961.0,1.47]
[1617567934761,0.47149006,57963.0,57961.0,1.47]
[1617567935364,0.10725655,57971.0,57961.0,1.47]
[1617567935564,0.10725655,57971.0,57970.0,0.10725655]
[1617567935764,0.10725655,57971.0,57970.0,3.28215655]
[1617567935964,0.10725655,57971.0,57970.0,3.55215655]
[1617567937166,0.10725655,57971.0,57970.0,3.68006655]
[1617567938668,0.10725655,57971.0,57970.0,0.50516655]
[1617567940267,0.10725655,57971.0,57970.0,0.37725655]
[1617567944374,0.10725655,57971.0,57970.0,3.38845655]
[1617567944574,0.26927088,57971.0,57970.0,3.38845655]
[1617567947281,0.26927088,57971.0,57970.0,3.55349655]
[1617567948486,0.71235445,57971.0,57970.0,3.55349655]
[1617567949792,1.07468477,57971.0,57970.0,3.55349655]
[1617567950592,1.07468477,57971.0,57970.0,3.38845655]
[1617567950794,1.57788441,57971.0,57970.0,3.38845655]
[1617567952398,1.07468477,57971.0,57970.0,3.38845655]
[1617567954000,1.5778812,57971.0,57970.0,3.38845655]
[1617567958007,1.5778812,57971.0,57970.0,0.37725655]
[1617567958206,4.9788812,57971.0,57970.0,0.37725655]
[1617567958406,4.9788812,57971.0,57970.0,0.27]
[1617567958609,6.28271923,57971.0,57970.0,0.27]
[1617567958807,6.28271923,57971.0,57949.0,0.27]
[1617567959116,6.73876862,57971.0,57970.0,0.26898647]
[1617567959515,0.36248249,57951.0,57949.0,0.27]
[1617567959707,0.46842249,57951.0,57950.0,0.10725655]
[1617567960108,0.10594,57951.0,57950.0,0.37725655]
[1617567960509,1.06736858,57951.0,57950.0,0.37725655]
[1617567960909,0.91203456,57951.0,57950.0,0.37725655]
[1617567961110,0.91203456,57951.0,57950.0,0.27]
[1617567961309,1.06737679,57951.0,57950.0,0.27]
[1617567961509,1.06737679,57951.0,57949.0,0.27]
[1617567961710,1.06737679,57951.0,57950.0,0.10725655]
[1617567961910,1.06737679,57951.0,57950.0,0.37725655]
[1617567962111,1.06737679,57951.0,57950.0,0.10725655]
[1617567962310,1.06737679,57951.0,57948.0,0.466]
[1617567962510,3.6868,57949.0,57948.0,0.466]
[1617567962710,4.49296497,57949.0,57948.0,0.466]
[1617567962911,5.49296497,57949.0,57948.0,0.736]
[1617567963111,6.78027589,57949.0,57948.0,0.736]
[1617567963910,6.88753244,57949.0,57948.0,0.736]
[1617567968216,7.45242943,57949.0,57948.0,0.736]
[1617567970017,6.88753244,57949.0,57948.0,0.736]
[1617567970819,7.45202834,57949.0,57948.0,0.736]
[1617567971420,7.45202834,57949.0,57948.0,0.73498613]
[1617567971618,7.14967693,57949.0,57948.0,0.73498613]
[1617567974219,6.14967693,57949.0,57948.0,0.73498613]
[1617567974419,7.14967693,57949.0,57948.0,0.73498613]
[1617567975021,6.78689262,57949.0,57948.0,0.73498613]
[1617567975321,7.14982405,57949.0,57948.0,0.73498613]
[1617567976321,7.61369124,57949.0,57948.0,0.73498613]
[1617567981425,7.61369124,57949.0,57948.0,0.73397222]
[1617567991236,7.04919534,57949.0,57948.0,0.73397222]
[1617567992739,6.04919534,57949.0,57948.0,0.73397222]
[1617567992938,7.04919534,57949.0,57948.0,0.73295831]
[1617567994742,7.61260594,57949.0,57948.0,0.73295831]
[1617568000747,7.91464432,57949.0,57948.0,0.73295831]
[1617568001164,7.91464432,57949.0,57948.0,0.27]
[1617568001375,9.41464432,57949.0,57948.0,0.27]
[1617568001569,9.41464432,57949.0,57943.0,0.27]
[1617568001758,5.72784432,57949.0,57943.0,0.27]
[1617568001979,5.72784432,57949.0,57948.0,0.27]
[1617568002159,4.72784432,57949.0,57944.0,0.27]
[1617568002348,4.96864369,57949.0,57944.0,0.27]
[1617568002563,4.96864369,57949.0,57948.0,0.27]
[1617568002748,2.31192311,57949.0,57945.0,0.27]
[1617568003149,4.24712301,57949.0,57927.0,0.27]
[1617568003349,4.24712301,57949.0,57946.0,0.27]
[1617568003552,0.17419885,57948.0,57946.0,0.27]
[1617568003751,4.8733,57947.0,57927.0,0.27]
[1617568003951,0.10725655,57928.0,57927.0,0.27]
[1617568004150,0.10725655,57928.0,57926.0,0.035]
[1617568004350,0.10725655,57928.0,57927.0,0.27]
[1617568004351,2.82420459,57928.0,57927.0,0.27]
[1617568004552,5.52950459,57928.0,57927.0,0.27]
[1617568004750,5.70372105,57928.0,57927.0,0.27]
[1617568005150,6.01910467,57928.0,57927.0,0.27]
[1617568010558,5.01910467,57928.0,57927.0,0.27]
[1617568012961,6.01910467,57928.0,57927.0,0.27]
[1617568014264,5.01910467,57928.0,57927.0,0.27]
[1617568015663,6.01910467,57928.0,57927.0,0.27]
[1617568017867,3.91920655,57928.0,57927.0,0.27]
[1617568018067,5.9997844,57928.0,57927.0,0.27]
[1617568018365,5.53232405,57928.0,57927.0,0.27]
[1617568018567,3.91920655,57928.0,57927.0,0.27]
[1617568018967,5.53231957,57928.0,57927.0,0.27]
[1617568019166,5.22983568,57928.0,57927.0,0.27]
[1617568021371,4.22983568,57928.0,57927.0,0.27]
[1617568021572,1.52453568,57928.0,57927.0,0.27]
[1617568021771,1.52453568,57928.0,57927.0,3.5839]
[1617568021974,1.41788568,57928.0,57927.0,3.5839]
[1617568022785,1.41788568,57928.0,57927.0,3.7839]
[1617568023178,1.08309775,57928.0,57927.0,3.7839]
[1617568023375,1.08309775,57928.0,57927.0,0.47]
[1617568024176,0.9758412,57928.0,57927.0,0.37725655]
[1617568025179,0.80655651,57928.0,57927.0,0.37725655]
[1617568025580,0.97582068,57928.0,57927.0,0.37725655]
[1617568025978,0.80655651,57928.0,57927.0,0.37725655]
[1617568026179,0.91381306,57928.0,57927.0,0.37725655]
[1617568027079,1.08308192,57928.0,57927.0,0.37725655]
[1617568027279,1.41901241,57928.0,57927.0,0.37725655]
[1617568027880,1.58831302,57928.0,57927.0,0.37725655]
[1617568028280,1.41901241,57928.0,57927.0,0.37725655]
[1617568028681,4.86433058,57928.0,57927.0,0.37725655]
[1617568028879,5.86433058,57928.0,57927.0,0.27]
[1617568029081,5.64204756,57928.0,57927.0,0.27]
[1617568029280,6.64204756,57928.0,57927.0,0.27]
[1617568029481,6.48021106,57928.0,57927.0,0.27]
[1617568030081,7.51032364,57928.0,57927.0,0.27]
[1617568030482,7.04562434,57928.0,57927.0,0.27]
[1617568030784,7.510399,57928.0,57927.0,0.27]
[1617568033289,6.94498572,57928.0,57927.0,0.27]
[1617568034989,7.51056755,57928.0,57927.0,0.27]
[1617568045801,6.51056755,57928.0,57927.0,0.27]
[1617568046002,7.51056755,57928.0,57927.0,0.27]
[1617568054109,6.51056755,57928.0,57927.0,0.27]
[1617568054311,7.51056755,57928.0,57927.0,0.27]
[1617568054812,7.403311,57928.0,57927.0,0.27]
[1617568056110,7.403311,57928.0,57927.0,0.26898589]
[1617568056310,7.51056755,57928.0,57927.0,0.26898589]
[1617568064218,8.2147678,57928.0,57927.0,0.26898589]
[1617568064620,7.51056755,57928.0,57927.0,0.26898589]
[1617568067622,7.51056755,57928.0,57927.0,0.26797165]
[1617568067924,8.21496087,57928.0,57927.0,0.26797165]
[1617568068324,7.51056755,57928.0,57927.0,0.26797165]
[1617568069927,4.38335655,57928.0,57927.0,0.26797165]
[1617568070227,6.5570715,57928.0,57927.0,0.26797165]
[1617568071129,7.33466218,57928.0,57927.0,0.26797165]
[1617568078032,7.33466218,57928.0,57927.0,0.26695741]
[1617568078636,8.03965615,57928.0,57927.0,0.26695741]
[1617568084038,7.33466218,57928.0,57927.0,0.26695741]
[1617568085038,7.44310218,57928.0,57927.0,0.26695741]
[1617568085639,8.14917902,57928.0,57927.0,0.26695741]
[1617568086040,7.68484835,57928.0,57927.0,0.26695741]
[1617568086443,8.16478867,57928.0,57927.0,0.26695741]
[1617568088042,8.16478867,57928.0,57927.0,0.26594316]
[1617568090045,7.72199675,57928.0,57927.0,0.26594316]
[1617568090247,5.19787339,57928.0,57927.0,0.26594316]
[1617568090547,4.19787339,57928.0,57927.0,0.26594316]
[1617568090748,7.37689741,57928.0,57927.0,0.26594316]
[1617568092049,6.37689741,57928.0,57927.0,0.26594316]
[1617568092250,7.37689741,57928.0,57927.0,0.26594316]
[1617568092750,7.85664403,57928.0,57927.0,0.26594316]
[1617568094455,8.74444457,57928.0,57927.0,0.26594316]
[1617568095756,10.24444457,57928.0,57927.0,0.26594316]
[1617568096353,10.29634457,57928.0,57927.0,0.26594316]
[1617568096557,10.24444457,57928.0,57927.0,0.26594316]
[1617568096958,10.24444457,57928.0,57926.0,0.035]
[1617568097159,6.96834457,57928.0,57926.0,0.0252]
[1617568097358,3.9758,57927.0,57926.0,0.0252]
[1617568097558,0.051,57926.0,57897.0,0.3649244]
[1617568097758,2.9768,57904.0,57897.0,0.3649244]
[1617568097957,3.08137,57904.0,57897.0,0.3649244]
[1617568098158,1.0,57898.0,57892.0,0.43493105]
[1617568098359,1.0,57898.0,57892.0,0.07]
[1617568098360,2.60846049,57898.0,57892.0,0.07]
[1617568098559,2.60846049,57898.0,57894.0,0.27]
[1617568098759,0.10725655,57895.0,57893.0,0.27]
[1617568098960,0.10725655,57895.0,57892.0,0.07]
[1617568099361,1.95864922,57895.0,57893.0,0.27]
[1617568099761,1.60803663,57894.0,57893.0,0.27]
[1617568100363,1.80464465,57894.0,57893.0,0.27]
[1617568100763,5.28194465,57894.0,57893.0,0.27]
[1617568101065,4.77945832,57894.0,57893.0,0.27]
[1617568101465,5.10703362,57894.0,57893.0,0.27]
[1617568101966,6.10703362,57894.0,57893.0,0.27]
[1617568102165,6.10703362,57894.0,57893.0,0.2698]
[1617568103769,6.60728093,57894.0,57893.0,0.2698]
[1617568104272,6.60728093,57894.0,57893.0,0.4698]
[1617568104468,6.60728093,57894.0,57893.0,0.2698]
[1617568104668,6.10703362,57894.0,57893.0,0.2698]
[1617568104868,5.10703362,57894.0,57893.0,0.2698]
[1617568105069,6.10703362,57894.0,57893.0,0.2698]
[1617568105969,6.60676585,57894.0,57893.0,0.2698]
[1617568106170,5.60676585,57894.0,57893.0,0.2698]
[1617568106369,6.60676585,57894.0,57893.0,0.2698]
[1617568106570,6.10703362,57894.0,57893.0,0.2698]
[1617568106971,6.60683277,57894.0,57893.0,0.2698]
[1617568109477,7.08627506,57894.0,57893.0,0.2698]
[1617568110078,3.60897506,57894.0,57893.0,0.2698]
[1617568110478,3.60897506,57894.0,57893.0,3.2801]
[1617568110881,2.80195747,57894.0,57893.0,3.2801]
[1617568111081,2.80195747,57894.0,57893.0,3.4801]
[1617568111283,3.13574303,57894.0,57893.0,3.4801]
[1617568111681,2.80195747,57894.0,57893.0,3.4801]
[1617568111884,1.80195747,57894.0,57893.0,3.4801]
[1617568112600,1.30215832,57894.0,57893.0,3.4801]
[1617568113006,1.30215832,57894.0,57893.0,3.58735655]
[1617568113183,1.30215832,57894.0,57893.0,0.57705655]
[1617568113413,1.30215832,57894.0,57893.0,0.4698]
[1617568113799,1.30215832,57894.0,57893.0,0.2698]
[1617568114005,0.19660802,57894.0,57893.0,0.2698]
[1617568114204,1.19660802,57894.0,57893.0,0.2698]
[1617568114392,2.2955951,57894.0,57893.0,0.2698]
[1617568114785,1.2955951,57894.0,57893.0,0.2698]
[1617568115185,2.2955951,57894.0,57893.0,0.2698]
[1617568116988,2.79460244,57894.0,57893.0,0.2698]
[1617568118088,1.79460244,57894.0,57893.0,0.2698]
[1617568118292,2.79460244,57894.0,57893.0,0.2698]
[1617568118489,1.79460244,57894.0,57893.0,0.4698]
[1617568118890,2.79460244,57894.0,57893.0,0.4698]
[1617568119090,1.79460244,57894.0,57893.0,0.4698]
[1617568119290,1.2955951,57894.0,57893.0,0.4698]
[1617568119492,1.2955951,57894.0,57893.0,3.6657]
[1617568119692,1.79488455,57894.0,57893.0,3.6657]
[1617568120092,1.2955951,57894.0,57893.0,3.6657]
[1617568123196,1.79493995,57894.0,57893.0,3.6657]
[1617568123596,1.2955951,57894.0,57893.0,3.6657]
[1617568130700,1.2955951,57894.0,57893.0,3.4657]
[1617568133602,1.79463782,57894.0,57893.0,0.2698]
[1617568134803,1.2955951,57894.0,57893.0,0.2698]
[1617568136006,1.92458972,57894.0,57893.0,0.2698]
[1617568140412,2.92458972,57894.0,57893.0,0.2698]
[1617568142413,1.92458972,57894.0,57893.0,0.2698]
[1617568144915,1.79535972,57894.0,57893.0,0.2698]
[1617568146616,2.79535972,57894.0,57893.0,0.2698]
[1617568149220,6.19182613,57894.0,57893.0,0.2698]
[1617568149821,7.10207529,57894.0,57893.0,0.26878529]
[1617568150322,6.55712204,57894.0,57893.0,0.26878529]
[1617568150722,8.05712204,57894.0,57893.0,0.26878529]
[1617568150923,9.30302511,57894.0,57893.0,0.26878529]
[1617568154528,14.30302511,57894.0,57893.0,0.20838529]
[1617568154726,9.30302511,57894.0,57893.0,0.20838529]
[1617568155128,10.18226717,57894.0,57893.0,0.20838529]
[1617568155429,9.30302511,57894.0,57893.0,0.20838529]
[1617568156629,14.30302511,57894.0,57893.0,0.20838529]
[1617568156829,9.30302511,57894.0,57893.0,0.20838529]
[1617568157030,10.00155842,57894.0,57893.0,0.20838529]
[1617568157432,9.30302511,57894.0,57893.0,0.20838529]
[1617568161432,9.30302511,57894.0,57893.0,0.20737039]
[1617568165137,10.17848871,57894.0,57893.0,0.20737039]
[1617568166440,10.87736265,57894.0,57893.0,0.20737039]
[1617568167242,10.17848871,57894.0,57893.0,0.20737039]
[1617568168243,10.17848871,57894.0,57893.0,0.15662084]
[1617568171845,15.17848871,57894.0,57893.0,0.15662084]
[1617568172445,15.8717463,57894.0,57893.0,0.15662084]
[1617568172966,15.8717463,57894.0,57893.0,0.15560586]
[1617568174946,15.9234463,57894.0,57893.0,0.15560586]
[1617568175146,8.0366463,57894.0,57893.0,0.15560586]
[1617568175549,6.79859404,57894.0,57893.0,0.15560586]
[1617568175947,7.36176926,57894.0,57893.0,0.15560586]
[1617568178652,7.36176926,57894.0,57893.0,0.10485627]
[1617568182353,6.79859404,57894.0,57893.0,0.10485627]
[1617568183153,9.81839404,57894.0,57893.0,0.10384127]
[1617568183954,10.37542646,57894.0,57893.0,0.10384127]
[1617568187356,9.37542646,57894.0,57893.0,0.10384127]
[1617568187555,10.37542646,57894.0,57893.0,0.10384127]
[1617568187756,7.096372,57894.0,57893.0,0.10384127]
[1617568188256,9.23820568,57894.0,57893.0,0.10384127]
[1617568188857,9.23820568,57894.0,57893.0,0.05309009]
[1617568191162,14.23820568,57894.0,57893.0,0.05309009]
[1617568191362,9.94824407,57894.0,57893.0,0.05309009]
[1617568191763,9.23820568,57894.0,57893.0,0.05309009]
[1617568192165,9.23820568,57894.0,57888.0,0.07]
[1617568192166,10.2294961,57894.0,57888.0,0.07]
[1617568192564,10.2294961,57894.0,57893.0,0.27]
[1617568192763,9.2294961,57894.0,57889.0,0.23]
[1617568192964,9.2294961,57894.0,57888.0,0.07]
[1617568192965,8.23820568,57894.0,57888.0,0.07]
[1617568193165,9.23820568,57894.0,57888.0,0.07]
[1617568193365,0.76179693,57893.0,57889.0,0.26898494]
[1617568193568,1.5,57892.0,57889.0,0.26898494]
[1617568193967,4.71152688,57890.0,57889.0,0.26898494]
[1617568194167,6.21152688,57890.0,57889.0,0.26898494]
[1617568194467,6.82056031,57890.0,57889.0,0.26898494]
[1617568198073,11.04797825,57890.0,57889.0,0.26898494]
[1617568198473,16.04797825,57890.0,57888.0,0.07]
[1617568198676,16.59751053,57890.0,57888.0,0.07]
[1617568198874,16.59751053,57890.0,57888.0,0.0531]
[1617568199075,6.55765352,57889.0,57888.0,0.00234012]
[1617568199274,14.05765352,57889.0,57840.0,0.36380008]
[1617568199474,15.95443187,57889.0,57840.0,0.4931]
[1617568199677,3.3272,57856.0,57855.0,0.27]
[1617568199875,3.46843,57856.0,57855.0,0.27]
[1617568200275,5.65842095,57856.0,57855.0,0.27]
[1617568200475,6.65842095,57856.0,57855.0,0.27]
[1617568200677,6.29293463,57856.0,57855.0,0.27]
[1617568201078,7.21511999,57856.0,57855.0,0.27]
[1617568201478,5.65843131,57856.0,57855.0,0.27]
[1617568201678,6.76568786,57856.0,57855.0,0.27]
[1617568202479,7.32237464,57856.0,57855.0,0.27]
[1617568202880,6.76568786,57856.0,57855.0,0.27]
[1617568203381,7.32226178,57856.0,57855.0,0.27]
[1617568203882,7.32226178,57856.0,57855.0,0.26898473]
[1617568205986,6.32226178,57856.0,57855.0,0.26898473]
[1617568206187,7.32226178,57856.0,57855.0,0.26898473]
[1617568208390,5.7414147,57856.0,57855.0,0.26898473]
[1617568208691,7.32557648,57856.0,57855.0,0.26898473]
[1617568214203,7.32557648,57856.0,57855.0,0.2679695]
[1617568214803,5.7414147,57856.0,57855.0,0.2679695]
[1617568215006,7.87742883,57856.0,57855.0,0.2679695]
[1617568215303,4.55022883,57856.0,57855.0,0.2679695]
[1617568215906,3.62815823,57856.0,57855.0,0.2679695]
[1617568216106,3.99364778,57856.0,57855.0,3.2198695]
[1617568216707,3.62815823,57856.0,57855.0,3.2198695]
[1617568217307,2.62815823,57856.0,57855.0,3.2198695]
[1617568217509,3.62815823,57856.0,57855.0,3.2198695]
[1617568218409,3.48692823,57856.0,57855.0,3.2198695]
[1617568218830,2.48692823,57856.0,57855.0,3.3702695]
[1617568219029,1.93317608,57856.0,57855.0,3.3702695]
[1617568219216,1.93317608,57856.0,57855.0,3.5702695]
[1617568220209,1.93317608,57856.0,57855.0,3.2198695]
[1617568221210,1.93317608,57856.0,57855.0,3.4198695]
[1617568223211,1.82591953,57856.0,57855.0,3.4198695]
[1617568223613,1.82591953,57856.0,57855.0,4.9198695]
[1617568224015,1.08782983,57856.0,57855.0,5.02712605]
[1617568224416,0.65271767,57856.0,57855.0,5.02712605]
[1617568224815,0.65271767,57856.0,57855.0,6.02712605]
[1617568225216,0.65271767,57856.0,57855.0,3.07522605]
[1617568225621,0.65271767,57856.0,57855.0,2.07522605]
[1617568227022,0.10725655,57862.0,57855.0,2.07522605]
[1617568227223,0.10725655,57862.0,57861.0,3.4791]
[1617568227424,0.10725655,57862.0,57861.0,3.80182]
[1617568227623,0.10725655,57862.0,57861.0,4.07182]
[1617568228026,1.0899668,57862.0,57861.0,2.19997655]
[1617568228234,1.0899668,57862.0,57861.0,3.19997655]
[1617568228425,1.0899668,57862.0,57861.0,6.61747655]
[1617568228629,0.65399989,57862.0,57861.0,6.61747655]
[1617568229126,0.89759792,57862.0,57861.0,6.61747655]
[1617568229525,0.65399989,57862.0,57861.0,6.61747655]
[1617568230728,0.29728168,57862.0,57861.0,6.61747655]
[1617568231930,0.0100021,57863.0,57861.0,6.98110452]
[1617568232130,0.0100021,57863.0,57861.0,3.56360452]
[1617568232330,0.0100021,57863.0,57861.0,2.56360452]
[1617568232530,0.0100021,57863.0,57862.0,1.06089452]
[1617568232731,0.0100021,57863.0,57862.0,0.26089452]
[1617568232930,0.35603161,57865.0,57863.0,3.3362]
[1617568233131,0.35603161,57865.0,57864.0,0.2]
[1617568233331,0.43481832,57865.0,57864.0,0.47]
[1617568233631,0.65226609,57865.0,57864.0,0.47]
[1617568234835,0.65226609,57865.0,57864.0,4.6569]
[1617568235035,1.08706968,57865.0,57864.0,5.6569]
[1617568235333,0.29649357,57865.0,57864.0,5.6569]
[1617568235836,0.00999367,57865.0,57864.0,5.6569]
[1617568236334,0.29679533,57865.0,57864.0,5.6569]
[1617568236733,0.29679533,57865.0,57864.0,4.6569]
[1617568236933,0.65274066,57865.0,57864.0,4.6569]
[1617568237336,0.29679533,57865.0,57864.0,4.6569]
[1617568237835,0.65255251,57865.0,57864.0,4.6569]
[1617568241238,0.29679533,57865.0,57864.0,4.6569]
[1617568241438,0.29679533,57865.0,57864.0,5.6569]
[1617568241638,0.00998859,57865.0,57864.0,5.6569]
[1617568242639,0.49462747,57880.0,57864.0,5.6569]
[1617568242640,0.00999109,57866.0,57864.0,5.6569]
[1617568243043,0.00999109,57866.0,57864.0,4.6569]
[1617568243340,0.00999109,57866.0,57865.0,1.0]
[1617568243540,0.00999109,57866.0,57865.0,2.7]
[1617568243741,0.00999109,57866.0,57865.0,2.97]
[1617568243943,0.00998053,57868.0,57865.0,2.97]
[1617568244344,0.00998053,57868.0,57866.0,1.0]
[1617568244545,0.00998053,57868.0,57867.0,1.7]
[1617568244744,0.00998053,57868.0,57867.0,3.07725655]
[1617568244944,0.00998053,57868.0,57867.0,0.57725655]
[1617568245145,0.00998053,57868.0,57867.0,2.07725655]
[1617568245344,0.29644538,57868.0,57867.0,2.07725655]
[1617568245948,0.00997922,57868.0,57867.0,2.07725655]
[1617568246446,0.29651845,57868.0,57867.0,2.07725655]
[1617568247750,0.35580238,57871.0,57867.0,2.07725655]
[1617568248150,0.00997188,57868.0,57867.0,2.07725655]
[1617568249453,0.29627718,57868.0,57867.0,0.57725655]
[1617568250353,0.65160297,57868.0,57867.0,0.57725655]
[1617568252654,0.75885952,57868.0,57867.0,0.57725655]
[1617568252855,0.75885952,57868.0,57867.0,0.27]
[1617568253256,1.43617316,57868.0,57862.0,0.27]
[1617568253456,1.43617316,57868.0,57863.0,0.2]
[1617568253657,1.43617316,57868.0,57867.0,0.27]
[1617568253855,1.43617316,57868.0,57864.0,0.01]
[1617568254155,1.43617316,57868.0,57863.0,0.2]
[1617568254156,1.43617316,57868.0,57867.0,0.27]
[1617568254356,0.10725655,57868.0,57867.0,0.27]
[1617568254555,0.10725655,57868.0,57867.0,0.2]
[1617568254755,0.10725655,57868.0,57867.0,0.57725655]
[1617568254957,1.68319273,57868.0,57867.0,0.57725655]
[1617568255157,1.68319273,57868.0,57867.0,0.30725655]
[1617568255357,1.19073729,57868.0,57867.0,0.57725655]
[1617568255758,1.43435281,57868.0,57867.0,0.57725655]
[1617568256359,1.19073729,57868.0,57867.0,0.57725655]
[1617568256961,1.43435843,57868.0,57867.0,0.57725655]
[1617568257861,1.92733581,57868.0,57867.0,0.57725655]
[1617568258560,1.92733581,57868.0,57867.0,0.37725655]
[1617568259161,1.92733581,57868.0,57867.0,0.27]
[1617568259561,2.04427581,57868.0,57867.0,0.2]
[1617568259762,2.04427581,57868.0,57867.0,0.19898488]
[1617568259962,2.04427581,57868.0,57867.0,0.46898488]
[1617568260163,0.22419655,57868.0,57867.0,0.19898488]
[1617568260564,1.30922477,57868.0,57867.0,0.46898488]
[1617568260763,1.19228477,57868.0,57867.0,0.46898488]
[1617568261368,1.19228477,57868.0,57867.0,3.60458488]
[1617568261567,1.43589732,57868.0,57867.0,3.60458488]
[1617568261969,1.00190576,57868.0,57867.0,3.60458488]
[1617568265373,1.00190576,57868.0,57867.0,0.46898488]
[1617568265578,3.86510576,57868.0,57867.0,0.46898488]
[1617568266178,3.86510576,57868.0,57867.0,0.27]
[1617568266374,1.80140534,57868.0,57867.0,0.27]
[1617568266580,1.80140534,57868.0,57867.0,2.823]
[1617568267187,1.43598432,57868.0,57867.0,2.823]
[1617568268177,1.92875383,57868.0,57867.0,2.823]
[1617568270178,1.92875383,57868.0,57867.0,2.82198485]
[1617568272079,2.04949383,57868.0,57867.0,2.82198485]
[1617568275180,0.22799655,57868.0,57867.0,2.82198485]
[1617568275381,2.05116952,57868.0,57867.0,2.82198485]
[1617568275780,1.68572583,57868.0,57867.0,2.82198485]
[1617568276180,1.92935106,57868.0,57867.0,2.82198485]
[1617568281483,1.92935106,57868.0,57867.0,3.02198485]
[1617568288289,0.10725655,57868.0,57867.0,3.02198485]
[1617568288690,1.68856401,57868.0,57867.0,3.02198485]
[1617568289492,1.93219882,57868.0,57867.0,3.02198485]
[1617568294597,1.93219882,57868.0,57867.0,2.82198485]
[1617568298404,1.93219882,57868.0,57867.0,0.26898485]
[1617568299704,2.48551951,57868.0,57867.0,0.26898485]
[1617568300808,2.48551951,57868.0,57867.0,0.26796965]
[1617568303605,2.63976951,57868.0,57867.0,0.26796965]
[1617568304707,2.48551951,57868.0,57867.0,0.26796965]
[1617568306908,2.48551951,57868.0,57867.0,0.46796965]
[1617568307310,2.48551951,57868.0,57867.0,4.0631262]
[1617568309712,2.48551951,57868.0,57867.0,3.8631262]
[1617568313817,0.10725655,57868.0,57867.0,3.8631262]
[1617568314419,2.24775629,57868.0,57867.0,3.8631262]
[1617568315021,2.49139538,57868.0,57867.0,3.8631262]
[1617568315223,2.49139538,57868.0,57867.0,3.75586965]
[1617568316221,2.49139538,57868.0,57867.0,3.85811965]
[1617568316422,2.49139538,57868.0,57867.0,4.05811965]
[1617568316621,2.38413883,57868.0,57867.0,4.05811965]
[1617568317222,2.14049974,57868.0,57867.0,4.05811965]
[1617568317622,1.58558472,57868.0,57867.0,4.05811965]
[1617568324232,1.09011426,57868.0,57867.0,4.05811965]
[1617568326633,1.09011426,57868.0,57867.0,4.10911965]
[1617568329139,1.01341426,57868.0,57867.0,4.10911965]
[1617568329539,1.25701684,57868.0,57867.0,4.10911965]
[1617568329740,1.25701684,57868.0,57867.0,6.60911965]
[1617568329941,0.57738837,57868.0,57867.0,6.60911965]
[1617568330343,0.82099148,57868.0,57867.0,6.60911965]
[1617568330843,0.57738837,57868.0,57867.0,6.60911965]
[1617568335351,0.57738837,57868.0,57867.0,6.55811965]
[1617568335952,0.57738837,57868.0,57867.0,5.55811965]
[1617568337251,0.57738837,57868.0,57867.0,6.35811965]
[1617568337651,0.57738837,57868.0,57867.0,5.35811965]
[1617568338051,0.57738837,57868.0,57867.0,3.85811965]
[1617568338251,0.57738837,57868.0,57867.0,3.75586965]
[1617568338452,1.01060487,57868.0,57867.0,3.75586965]
[1617568344560,1.01060487,57868.0,57867.0,3.95586965]
[1617568344759,1.01060487,57868.0,57867.0,5.00786965]
[1617568344963,0.57738837,57868.0,57867.0,5.00786965]
[1617568345360,0.82098523,57868.0,57867.0,4.95586965]
[1617568345761,0.57738837,57868.0,57867.0,4.95586965]
[1617568345960,0.57738837,57868.0,57867.0,6.45586965]
[1617568346162,0.2973219,57868.0,57867.0,6.45586965]
[1617568347663,0.2973219,57868.0,57867.0,5.45586965]
[1617568348063,0.2957078,57869.0,57867.0,6.45586965]
[1617568348463,0.29576777,57870.0,57868.0,0.06089379]
[1617568348863,0.29576777,57870.0,57869.0,0.47]
[1617568349064,0.29576777,57870.0,57869.0,2.97]
[1617568349464,0.29576777,57870.0,57869.0,3.03089303]
[1617568351770,0.00995049,57870.0,57869.0,3.03089303]
[1617568353472,0.00994012,57871.0,57869.0,3.03089303]
[1617568353869,0.00994012,57871.0,57870.0,1.0]
[1617568354071,0.00994012,57871.0,57870.0,2.76089178]
[1617568354272,0.00994012,57871.0,57870.0,3.03089178]
[1617568354472,0.00994012,57871.0,57870.0,2.97]
[1617568355973,0.00994175,57872.0,57870.0,2.97]
[1617568356373,0.00994175,57872.0,57871.0,1.0]
[1617568356574,0.00994175,57872.0,57871.0,2.86626]
[1617568356777,0.29555298,57872.0,57871.0,3.13626]
[1617568357475,0.29555298,57872.0,57871.0,3.24351655]
[1617568358980,0.29555298,57872.0,57871.0,0.74351655]
[1617568359179,0.29555298,57872.0,57871.0,0.57725655]
[1617568359782,0.65001064,57872.0,57871.0,0.57725655]
[1617568360381,0.65001064,57872.0,57871.0,0.37725655]
[1617568361383,0.65001064,57872.0,57871.0,0.57725655]
[1617568363988,0.65001064,57872.0,57871.0,0.62915655]
[1617568364187,0.65001064,57872.0,57871.0,0.57725655]
[1617568365992,0.29555298,57872.0,57871.0,0.57725655]
[1617568368496,0.29555298,57872.0,57871.0,1.57725655]
[1617568372804,0.65083113,57872.0,57871.0,1.94156923]